bitfinex/quotes_SOLUSD_20250517
["timestamp","ask_amount","ask_price","bid_price","bid_amount"]
[1747440326943,1.19049503,167.35,167.28,26.0]
[1747440327152,49.45743321,167.37,167.29,18.64964886]
[1747440327356,42.29209967,167.37,167.29,18.64964886]
[1747440327565,42.29209967,167.37,167.3,18.64964886]
[1747440328253,42.29209967,167.37,167.31,5.97692905]
[1747440329252,5.97368902,167.41,167.32,18.64964886]
[1747440329439,1.19049503,167.45,167.34,18.64964886]
[1747440329645,7.16242694,167.45,167.34,18.64964886]
[1747440329972,26.0,167.44,167.34,18.64964886]
[1747440330171,1.19049503,167.43,167.34,18.64964886]
[1747440330342,5.97300203,167.42,167.36,18.64964886]
[1747440330539,1.19049503,167.41,167.34,18.64964886]
[1747440331457,7.16404279,167.41,167.34,24.625468]
[1747440331972,26.0,167.45,167.34,24.625468]
[1747440332151,1.19049503,167.43,167.34,24.625468]
[1747440333355,7.16327641,167.43,167.34,24.625468]
[1747440333560,7.16246383,167.45,167.36,18.64964886]
[1747440333760,1.19049503,167.45,167.36,18.64964886]
[1747440335054,7.16257367,167.45,167.36,18.64964886]
[1747440335373,7.16257367,167.45,167.37,5.9747864]
[1747440335778,1.19049503,167.45,167.37,5.9747864]
[1747440336068,7.16169454,167.48,167.38,44.64964886]
[1747440336461,7.16104661,167.49,167.42,18.64964886]
[1747440336651,26.8,167.5,167.42,18.64964886]
[1747440336652,7.1607143,167.5,167.42,18.64964886]
[1747440337675,7.1607143,167.5,167.44,18.64964886]
[1747440337968,1.19049503,167.5,167.44,18.64964886]
[1747440338186,7.15921891,167.54,167.44,44.64964886]
[1747440339876,22.08102862,167.54,167.44,50.62186512]
[1747440340058,22.08102862,167.54,167.44,44.64964886]
[1747440340664,26.0,167.51,167.44,18.64964886]
[1747440340978,1.19049503,167.5,167.44,18.64964886]
[1747440341278,1.19049503,167.5,167.42,12.14762258]
[1747440341457,27.19049503,167.5,167.42,6.1747]
[1747440342055,5.9705057,167.49,167.42,24.82434886]
[1747440342259,1.19049503,167.48,167.42,24.82434886]
[1747440342452,1.19049503,167.48,167.42,30.79731828]
[1747440342658,31.97021475,167.5,167.43,18.64964886]
[1747440342966,33.16070978,167.5,167.43,18.64964886]
[1747440343779,48.08608291,167.5,167.4,5.97340809]
[1747440343965,48.08608291,167.5,167.4,24.62305695]
[1747440344279,48.08608291,167.5,167.41,18.64964886]
[1747440344280,33.16070978,167.5,167.41,18.64964886]
[1747440344866,33.9603116,167.51,167.44,18.64964886]
[1747440345182,33.15988068,167.53,167.44,18.64964886]
[1747440345476,7.15988068,167.53,167.44,18.64964886]
[1747440345653,5.96882211,167.54,167.44,18.64964886]
[1747440345863,7.15894116,167.55,167.46,18.64964886]
[1747440346056,7.15803772,167.58,167.5,24.61979811]
[1747440346569,1.19049503,167.58,167.5,39.54517124]
[1747440346766,1.5916,167.62,167.5,39.54517124]
[1747440346959,27.19049503,167.61,167.5,39.54517124]
[1747440347786,33.15672616,167.61,167.5,39.54517124]
[1747440348380,7.15672616,167.61,167.5,39.54517124]
[1747440348589,5.96587519,167.62,167.5,39.54517124]
[1747440348785,31.96587519,167.62,167.5,39.54517124]
[1747440350088,31.96587519,167.62,167.52,24.61908534]
[1747440351362,5.96551929,167.63,167.52,50.61908534]
[1747440351787,1.19049503,167.62,167.52,50.61908534]
[1747440352298,1.19049503,167.62,167.52,50.61901755]
[1747440352806,5.96551929,167.63,167.56,18.64964886]
[1747440352976,5.96527437,167.64,167.56,18.64964886]
[1747440353493,5.96527437,167.64,167.58,18.64964886]
[1747440354502,5.96481726,167.65,167.59,18.64964886]
[1747440354697,17.69127606,167.69,167.59,18.64964886]
[1747440355008,28.78229503,167.69,167.59,18.64964886]
[1747440355492,28.78229503,167.69,167.6,6.2502]
[1747440355690,28.78229503,167.69,167.61,18.64964886]
[1747440355691,5.96374045,167.68,167.61,18.64964886]
[1747440356476,5.96338481,167.69,167.61,24.61579048]
[1747440358395,5.96338481,167.69,167.61,18.64964886]
[1747440359297,27.19049503,167.68,167.61,18.64964886]
[1747440359493,27.19049503,167.68,167.59,18.64964886]
[1747440359998,1.19049503,167.68,167.59,18.64964886]
[1747440360599,5.96409614,167.67,167.59,18.64964886]
[1747440361008,20.87433649,167.67,167.59,18.64964886]
[1747440361909,20.87433649,167.67,167.59,24.61658882]
[1747440361910,5.96409614,167.67,167.59,24.61658882]
[1747440362477,5.96362934,167.69,167.63,18.64964886]
[1747440362676,5.96302921,167.7,167.63,24.61508335]
[1747440364007,5.96196267,167.73,167.67,44.64964886]
[1747440364476,1.6146,167.77,167.67,44.64964886]
[1747440364675,5.96024868,167.78,167.72,18.64964886]
[1747440364894,7.6213,167.82,167.72,18.64964886]
[1747440364895,1.19049503,167.81,167.72,18.64964886]
[1747440365483,27.19049503,167.81,167.72,18.64964886]
[1747440366080,5.95912043,167.81,167.74,18.64964886]
[1747440366298,1.19049503,167.88,167.74,44.64964886]
[1747440366699,26.0,167.87,167.74,44.64964886]
[1747440366907,1.19049503,167.86,167.74,44.64964886]
[1747440367303,26.0,167.85,167.74,44.64964886]
[1747440367502,1.19049503,167.84,167.74,44.64964886]
[1747440368086,5.95841029,167.83,167.74,50.61123443]
[1747440369011,5.95841029,167.83,167.74,44.64964886]
[1747440369189,20.85443603,167.83,167.74,44.64964886]
[1747440369385,20.85443603,167.83,167.76,18.64964886]
[1747440369787,1.19049503,167.88,167.76,104.60298061]
[1747440369983,1.19049503,167.88,167.8,18.64964886]
[1747440370197,26.0,167.89,167.8,18.64964886]
[1747440370406,1.19049503,167.88,167.81,85.92772144]
[1747440370708,27.19049503,167.88,167.81,85.92772144]
[1747440371083,1.19049503,167.9,167.82,18.64964886]
[1747440371484,1.19049503,167.9,167.84,18.64964886]
[1747440371720,20.84450002,167.91,167.84,18.64964886]
[1747440372009,26.0,167.93,167.85,12.05614637]
[1747440372200,1.19049503,167.91,167.85,12.05614637]
[1747440373209,1.19049503,167.92,167.85,12.05614637]
[1747440374024,22.03127149,167.94,167.86,18.64964886]
[1747440374520,22.03127149,167.94,167.85,12.05614637]
[1747440374521,26.0,167.91,167.85,12.05614637]
[1747440374828,26.0,167.89,167.78,18.64964886]
[1747440374985,1.19049503,167.88,167.78,18.64964886]
[1747440376305,20.84946684,167.87,167.78,18.64964886]
[1747440376806,1.19049503,167.86,167.78,18.64964886]
[1747440378403,20.85195113,167.85,167.78,18.64964886]
[1747440378595,1.19049503,167.88,167.78,24.60965694]
[1747440378798,1.19049503,167.88,167.78,18.64964886]
[1747440379192,1.19049503,167.88,167.79,6.6004]
[1747440379991,29.78039585,167.9,167.83,18.64964886]
[1747440379992,14.89036942,167.9,167.83,18.64964886]
[1747440380192,29.77248427,167.95,167.83,20.23894886]
[1747440380399,26.0,167.94,167.83,26.19719585]
[1747440381010,26.0,167.94,167.83,52.19719585]
[1747440382219,20.83953557,167.95,167.87,18.64964886]
[1747440382527,14.88538255,167.95,167.87,24.60653802]
[1747440382827,5.95379852,167.96,167.89,18.64964886]
[1747440384335,14.88330808,167.98,167.91,18.64964886]
[1747440386305,20.83639773,167.98,167.91,18.64964886]
[1747440387132,1.19049503,167.97,167.89,18.64964886]
[1747440388525,20.83829482,167.96,167.89,18.64964886]
[1747440390412,27.19049503,167.95,167.84,6.1093]
[1747440390611,20.84077646,167.94,167.85,18.64964886]
[1747440390928,1.19049503,167.93,167.85,18.64964886]
[1747440391808,51.8038093,167.94,167.85,18.64964886]
[1747440393445,1.6364,167.93,167.85,18.64964886]
[1747440393618,1.19049503,167.92,167.85,18.64964886]
[1747440395109,20.84450002,167.91,167.85,18.64964886]
[1747440395440,20.84450002,167.91,167.83,78.98]
[1747440395441,20.84450002,167.91,167.84,18.64964886]
[1747440395826,14.88697916,167.94,167.84,18.64964886]
[1747440396347,14.88697916,167.94,167.87,18.64964886]
[1747440403207,5.95379852,167.96,167.87,18.64964886]
[1747440403534,5.95379852,167.96,167.89,18.64964886]
[1747440403843,5.95379852,167.96,167.89,44.64964886]
[1747440404243,20.83829482,167.96,167.89,44.64964886]
[1747440404413,20.83829482,167.96,167.89,69.76964886]
[1747440405135,5.95379852,167.96,167.89,69.76964886]
[1747440405953,5.95308965,167.98,167.89,75.7258559]
[1747440406823,5.95131821,168.03,167.93,18.64964886]
[1747440407717,5.95131821,168.03,167.97,18.64964886]
[1747440408027,20.82961375,168.03,167.94,18.64964886]
[1747440408531,5.95131821,168.03,167.96,20.16134886]
[1747440408738,5.95131821,168.03,167.96,45.10134886]
[1747440409734,5.95060993,168.05,167.98,18.64964886]
[1747440409929,20.82713477,168.05,167.98,18.64964886]
[1747440410639,20.82713477,168.05,167.96,32.40538129]
[1747440410821,20.82713477,168.05,167.97,18.64964886]
[1747440410822,1.19049503,168.04,167.97,18.64964886]
[1747440411019,1.19049503,168.04,167.96,18.64964886]
[1747440411221,26.0,168.02,167.94,18.64964886]
[1747440411418,1.19049503,168.01,167.94,18.64964886]
[1747440411828,20.83333333,168.0,167.94,18.64964886]
[1747440412028,1.19049503,167.99,167.94,18.64964886]
[1747440412237,20.83333333,168.0,167.94,18.64964886]
[1747440415926,1.19049503,167.99,167.94,18.64964886]
[1747440416123,5.95308965,167.98,167.94,18.64964886]
[1747440417449,20.83581378,167.98,167.94,18.64964886]
[1747440418252,14.88272413,167.98,167.94,18.64964886]
[1747440418653,14.88272413,167.98,167.91,6.0532]
[1747440418839,1.19049503,167.97,167.9,18.64964886]
[1747440419235,1.19049503,167.97,167.87,30.4732]
[1747440419429,26.0,167.95,167.84,25.26]
[1747440419739,2.78079503,167.94,167.84,51.26]
[1747440419944,2.78079503,167.94,167.85,18.64964886]
[1747440420658,5.95486214,167.93,167.85,18.64964886]
[1747440420855,20.8420175,167.93,167.85,18.64964886]
[1747440421154,1.19049503,167.92,167.85,18.64964886]
[1747440422369,5.95486214,167.93,167.87,18.64964886]
[1747440422545,5.95379852,167.96,167.88,5.95663569]
[1747440423231,5.95379852,167.96,167.91,26.0]
[1747440424359,5.95308965,167.98,167.91,26.0]
[1747440425167,20.83581378,167.98,167.91,26.0]
[1747440425957,20.83581378,167.98,167.87,140.6568888]
[1747440426151,1.19049503,167.97,167.88,18.64964886]
[1747440426478,20.83829482,167.96,167.88,18.64964886]
[1747440426777,5.95379852,167.96,167.88,18.64964886]
[1747440427437,7.14429355,167.96,167.88,18.64964886]
[1747440427637,22.02878985,167.96,167.88,18.64964886]
[1747440427839,5.95379852,167.96,167.88,24.60625848]
[1747440428362,5.95379852,167.96,167.88,48.92625848]
[1747440428674,20.8349575,167.99,167.88,48.92625848]
[1747440428840,20.8349575,167.99,167.88,183.62625848]
[1747440429165,20.8349575,167.99,167.92,18.64964886]
[1747440429868,14.88222222,167.99,167.92,18.64964886]
[1747440430077,14.88222222,167.99,167.92,24.60482984]
[1747440430236,14.88222222,167.99,167.92,18.64964886]
[1747440431655,7.14287598,168.0,167.92,18.64964886]
[1747440431656,7.14287598,168.0,167.92,24.60485099]
[1747440431840,5.95238095,168.0,167.92,24.60485099]
[1747440432361,7.14181324,168.03,167.96,18.64964886]
[1747440432740,22.02010878,168.03,167.96,18.64964886]
[1747440434158,7.14181324,168.03,167.96,24.60340387]
[1747440434355,5.95131821,168.03,167.96,24.60340387]
[1747440436944,5.95096405,168.04,167.96,24.60340387]
[1747440437659,5.95096405,168.04,167.96,159.30340387]
[1747440438052,5.95060993,168.05,167.96,159.30340387]
[1747440440670,5.95060993,168.05,168.0,18.64964886]
[1747440441745,5.94990182,168.07,168.0,18.64964886]
[1747440442564,5.94990182,168.07,168.0,24.60198938]
[1747440444654,5.94990182,168.07,168.0,18.64964886]
[1747440445268,5.94990182,168.07,168.0,24.60199457]
[1747440445652,5.94990182,168.07,168.0,24.60190147]
[1747440446056,5.94990182,168.07,168.02,18.64964886]
[1747440446371,1.19049503,168.11,168.02,18.64964886]
[1747440446668,1.19049503,168.11,168.02,24.60112068]
[1747440447777,22.01019641,168.11,168.02,24.60112068]
[1747440448075,22.01019641,168.11,168.01,18.64964886]
[1747440449262,22.01019641,168.11,168.01,24.60162718]
[1747440450675,1.19049503,168.11,168.05,18.64964886]
[1747440450881,5.94813228,168.12,168.05,25.28204886]
[1747440451881,16.05934212,168.14,168.05,25.28204886]
[1747440452175,26.0,168.15,168.06,25.76]
[1747440452351,1.19049503,168.16,168.07,18.64964886]
[1747440452557,1.19049503,168.16,168.07,44.64964886]
[1747440452966,1.19049503,168.16,168.07,18.64964886]
[1747440452967,46.81474872,168.15,168.07,18.64964886]
[1747440453178,1.19049503,168.14,168.07,18.64964886]
[1747440453365,1.19049503,168.14,168.06,25.76]
[1747440453767,1.19049503,168.14,168.07,18.64964886]
[1747440454384,1.19049503,168.14,168.02,18.64964886]
[1747440454564,26.0,168.08,168.0,18.64964886]
[1747440454762,20.82465638,168.07,168.0,18.64964886]
[1747440454963,1.19049503,168.06,167.98,18.64964886]
[1747440455366,1.19049503,168.06,167.96,25.86]
[1747440455556,26.0,168.04,167.92,6.5578]
[1747440455760,1.19049503,168.03,167.92,6.5578]
[1747440455963,26.0,167.99,167.87,6.5578]
[1747440456159,26.0,167.97,167.84,25.86]
[1747440456482,1.19049503,167.96,167.84,51.86]
[1747440456883,26.0,167.94,167.84,51.86]
[1747440457086,1.19049503,167.93,167.83,6.5578]
[1747440457253,1.19049503,167.93,167.83,32.5578]
[1747440457454,26.0,167.92,167.83,6.5578]
[1747440457764,26.0,167.9,167.78,6.5578]
[1747440457967,1.19049503,167.89,167.78,6.5578]
[1747440458387,26.0,167.88,167.78,6.5578]
[1747440458580,1.19049503,167.87,167.77,37.19781358]
[1747440458786,5.9573454,167.86,167.77,37.19781358]
[1747440458991,26.0,167.83,167.77,37.19781358]
[1747440459183,1.19049503,167.82,167.72,6.5578]
[1747440459599,1.19049503,167.82,167.75,26.0]
[1747440459884,27.19049503,167.85,167.76,18.64964886]
[1747440460092,26.0,167.85,167.76,18.64964886]
[1747440460462,31.95694506,167.88,167.8,18.64964886]
[1747440460657,1.5478,167.92,167.8,18.64964886]
[1747440460658,5.95624076,167.9,167.8,18.64964886]
[1747440460861,5.95624076,167.9,167.82,18.64964886]
[1747440461067,7.14598093,167.92,167.82,18.64964886]
[1747440461286,31.9554859,167.92,167.82,18.64964886]
[1747440461462,31.9554859,167.92,167.82,24.88444886]
[1747440461877,1.19049503,167.93,167.82,50.88444886]
[1747440462081,1.19049503,167.95,167.84,18.64964886]
[1747440462474,5.95417642,167.95,167.88,18.64964886]
[1747440463365,7.14425956,167.97,167.83,28.68]
[1747440463571,7.14425956,167.97,167.87,18.64964886]
[1747440464703,7.14425956,167.97,167.83,28.68]
[1747440464704,22.02786972,167.97,167.83,28.68]
[1747440464913,22.02786972,167.97,167.84,18.64964886]
[1747440465477,7.14425956,167.97,167.88,18.64964886]
[1747440465892,5.95376453,167.97,167.88,18.64964886]
[1747440466320,1.19049503,167.96,167.88,18.64964886]
[1747440466473,5.95415302,167.95,167.86,18.64964886]
[1747440466796,1.19049503,167.94,167.86,18.64964886]
[1747440467273,1.19049503,167.94,167.82,69.77322724]
[1747440467596,1.19049503,167.94,167.83,44.64964886]
[1747440467999,26.0,167.92,167.83,18.64964886]
[1747440468199,1.19049503,167.91,167.83,18.64964886]
[1747440468497,31.95592614,167.9,167.83,18.64964886]
[1747440468676,26.0,167.87,167.74,7.6423]
[1747440468869,26.0,167.85,167.74,6.0506]
[1747440469073,1.19049503,167.84,167.74,6.0506]
[1747440469980,1.19049503,167.84,167.75,18.64964886]
[1747440470574,5.95841029,167.83,167.75,18.64964886]
[1747440470794,1.19049503,167.82,167.75,18.64964886]
[1747440471327,5.9580815,167.84,167.75,50.61081879]
[1747440471795,26.0,167.81,167.69,43.1776838]
[1747440471974,1.19049503,167.8,167.7,18.64964886]
[1747440472171,1.19049503,167.8,167.69,37.21446424]
[1747440472600,31.95983074,167.79,167.69,43.17782607]
[1747440472800,1.19049503,167.78,167.7,18.64964886]
[1747440473508,31.95983074,167.79,167.7,18.64964886]
[1747440474505,31.95983074,167.79,167.72,18.64964886]
[1747440475608,30.26,167.86,167.72,18.64964886]
[1747440475609,5.9573454,167.86,167.72,18.64964886]
[1747440475907,26.0,167.83,167.72,18.64964886]
[1747440476084,1.19049503,167.82,167.72,18.64964886]
[1747440476510,1.19049503,167.85,167.76,18.64964886]
[1747440476710,5.9573454,167.86,167.76,18.64964886]
[1747440476906,5.9573454,167.86,167.78,18.64964886]
[1747440477112,26.0,167.83,167.78,18.64964886]
[1747440477314,1.19049503,167.82,167.78,18.64964886]
[1747440477521,26.0,167.83,167.73,18.64964886]
[1747440477823,26.0,167.83,167.73,153.34964886]
[1747440478395,7.14926037,167.82,167.73,153.34964886]
[1747440478604,22.04617372,167.82,167.73,153.34964886]
[1747440478888,5.95876534,167.82,167.73,159.31147689]
[1747440480096,5.95841029,167.83,167.73,159.31147689]
[1747440480406,1.19049503,167.82,167.73,153.34964886]
[1747440480606,20.85443603,167.83,167.73,159.31139314]
[1747440480832,5.95841029,167.83,167.73,159.31139314]
[1747440481195,1.19049503,167.89,167.81,18.64964886]
[1747440481415,7.14429355,167.96,167.85,18.64964886]
[1747440481619,26.0,167.93,167.84,18.64964886]
[1747440481921,27.19049503,167.92,167.84,18.64964886]
[1747440482102,5.95557143,167.91,167.84,18.64964886]
[1747440482308,1.19049503,167.9,167.84,18.64964886]
[1747440482631,5.95557143,167.91,167.84,18.64964886]
[1747440482807,7.14606646,167.91,167.84,18.64964886]
[1747440483611,22.03499505,167.91,167.84,18.64964886]
[1747440484709,7.14606646,167.91,167.84,18.64964886]
[1747440486107,22.03499505,167.91,167.84,18.64964886]
[1747440486524,7.14606646,167.91,167.84,18.64964886]
[1747440486832,5.95529995,167.92,167.84,24.60757495]
[1747440486996,5.95450756,167.94,167.84,24.60757495]
[1747440487195,1.19049503,167.93,167.84,18.64964886]
[1747440488427,20.84325868,167.92,167.81,31.72]
[1747440488597,26.0,167.89,167.8,18.64964886]
[1747440488793,27.19049503,167.88,167.75,134.7]
[1747440489006,1.507,167.87,167.75,6.2694]
[1747440489339,1.19049503,167.86,167.76,18.64964886]
[1747440490004,5.95770032,167.85,167.76,24.61038199]
[1747440490419,1.19049503,167.84,167.76,24.61038199]
[1747440491133,5.95841029,167.83,167.76,24.61038199]
[1747440491518,5.95841029,167.83,167.76,18.64964886]
[1747440491709,1.19049503,167.82,167.75,6.2694]
[1747440491909,1.19049503,167.82,167.74,18.64964886]
[1747440492801,5.95912043,167.81,167.74,18.64964886]
[1747440493824,5.95912043,167.81,167.74,24.61120947]
[1747440494031,5.95821199,167.84,167.76,18.64964886]
[1747440495633,5.95821199,167.84,167.78,18.64964886]
[1747440496041,26.0,167.87,167.78,18.64964886]
[1747440496213,27.19049503,167.87,167.78,18.64964886]
[1747440496542,27.19049503,167.87,167.77,18.64964886]
[1747440497226,7.14713072,167.88,167.8,18.64964886]
[1747440497638,7.14713072,167.88,167.81,5.95912043]
[1747440498141,7.14713072,167.88,167.8,18.64964886]
[1747440498749,22.03871995,167.88,167.8,18.64964886]
[1747440498954,22.03871995,167.88,167.78,18.64964886]
[1747440499850,26.0,167.85,167.75,18.64964886]
[1747440500052,1.19049503,167.84,167.75,153.34964886]
[1747440500222,1.19049503,167.84,167.72,24.61187234]
[1747440501247,1.5375,167.83,167.72,18.64964886]
[1747440501449,1.19049503,167.82,167.72,18.64964886]
[1747440501659,26.0,167.81,167.71,6.2929]
[1747440501850,1.19049503,167.8,167.71,6.2929]
[1747440502448,5.95983074,167.79,167.71,6.2929]
[1747440502647,1.19049503,167.78,167.71,6.2929]
[1747440502849,26.0,167.76,167.71,6.2929]
[1747440503031,26.0,167.76,167.7,18.64964886]
[1747440503343,1.19049503,167.75,167.69,37.21446424]
[1747440504154,26.0,167.76,167.7,18.64964886]
[1747440504358,5.96125186,167.75,167.7,18.64964886]
[1747440504856,31.96093713,167.76,167.7,24.61256815]
[1747440505236,31.96093713,167.76,167.7,18.64964886]
[1747440506629,31.96093713,167.76,167.7,24.61263198]
[1747440507257,1.19049503,167.78,167.7,24.61263198]
[1747440507441,27.19049503,167.79,167.7,24.61263198]
[1747440508256,26.0,167.79,167.7,24.61263198]
[1747440508629,31.96016687,167.79,167.7,24.61263198]
[1747440508822,26.0,167.78,167.7,24.61263198]
[1747440509061,5.95957083,167.8,167.7,24.61263198]
[1747440509237,5.95957083,167.8,167.7,159.31263198]
[1747440509439,1.19049503,167.83,167.74,18.64964886]
[1747440509750,27.19049503,167.84,167.74,18.64964886]
[1747440510253,48.04368854,167.84,167.74,18.64964886]
[1747440510556,22.04368854,167.84,167.74,18.64964886]
[1747440510847,48.04368854,167.84,167.74,24.61105074]
[1747440513431,26.0,167.81,167.7,134.7]
[1747440513756,1.19049503,167.8,167.69,37.21446424]
[1747440514061,1.5396,167.79,167.69,37.21446424]
[1747440514260,1.19049503,167.78,167.69,37.21446424]
[1747440515554,46.86189425,167.77,167.69,37.21446424]
[1747440515753,1.19049503,167.76,167.69,37.21446424]
[1747440516154,26.0,167.74,167.69,37.21446424]
[1747440516453,1.19049503,167.73,167.69,37.21446424]
[1747440516759,1.19049503,167.73,167.65,18.64964886]
[1747440516963,27.19049503,167.73,167.65,18.64964886]
[1747440517269,27.19049503,167.73,167.6,5.96655939]
[1747440517270,26.0,167.72,167.6,5.96655939]
[1747440517440,26.0,167.69,167.59,12.39824198]
[1747440517636,26.0,167.67,167.57,134.7]
[1747440517958,1.19049503,167.66,167.58,18.64964886]
[1747440518163,27.19049503,167.66,167.56,31.96793309]
[1747440518666,7.15352424,167.7,167.56,155.58796173]
[1747440518858,7.15352424,167.7,167.61,18.64964886]
[1747440519872,7.15352424,167.7,167.62,5.96587519]
[1747440520362,7.15352424,167.7,167.61,24.61577504]
[1747440520762,7.15352424,167.7,167.61,18.64964886]
[1747440521366,22.06109728,167.7,167.61,24.61574963]
[1747440521952,22.06109728,167.7,167.61,18.64964886]
[1747440522352,1.19049503,167.7,167.61,24.61575296]
[1747440522549,1.19049503,167.75,167.65,44.64964886]
[1747440522750,7.15177068,167.75,167.65,44.64964886]
[1747440523065,62.81180994,167.76,167.65,179.34964886]
[1747440523237,30.85080394,167.76,167.65,179.34964886]
[1747440523440,36.81180765,167.76,167.65,179.34964886]
[1747440524253,36.81180765,167.76,167.67,18.64964886]
[1747440524753,30.85080394,167.76,167.67,18.64964886]
[1747440525840,36.81178736,167.76,167.68,5.96374045]
[1747440526046,30.85080394,167.76,167.68,20.87309159]
[1747440526243,30.85080394,167.76,167.69,18.64964886]
[1747440526438,1.19049503,167.8,167.71,18.64964886]
[1747440526660,7.15007958,167.8,167.71,18.64964886]
[1747440527662,7.15007958,167.8,167.73,18.64964886]
[1747440528643,5.95958455,167.8,167.73,18.64964886]
[1747440528844,5.95958455,167.8,167.74,5.96160724]
[1747440529061,5.95958455,167.8,167.73,24.61151215]
[1747440529461,1.19049503,167.79,167.71,18.64964886]
[1747440531475,5.96018595,167.78,167.71,24.61201701]
[1747440532080,5.95990642,167.79,167.71,24.61201701]
[1747440532256,28.84149503,167.82,167.71,24.61201701]
[1747440533868,5.95932489,167.81,167.71,174.21870116]
[1747440534076,5.95932489,167.81,167.71,153.34964886]
[1747440534077,27.19049503,167.8,167.71,153.34964886]
[1747440534275,51.63976476,168.15,167.86,18.64964886]
[1747440534576,5.94855085,168.11,168.01,18.64964886]
[1747440534893,36.77145201,168.15,168.0,44.64964886]
[1747440535058,5.94771896,168.14,168.0,44.64964886]
[1747440535263,36.77145201,168.15,168.0,44.64964886]
[1747440535876,5.94749252,168.14,168.0,44.64964886]
[1747440536087,5.94749252,168.14,168.02,18.64964886]
[1747440536258,34.84713623,168.15,168.02,18.64964886]
[1747440536455,28.9,168.15,168.02,18.64964886]
[1747440536682,5.94571369,168.19,168.05,18.64964886]
[1747440536984,29.22,168.21,168.05,18.64964886]
[1747440537163,26.0,168.17,168.05,18.64964886]
[1747440537559,26.0,168.17,168.04,28.82]
[1747440537764,26.0,168.17,168.05,18.64964886]
[1747440537967,26.0,168.16,168.05,18.64964886]
[1747440538290,26.0,168.14,168.06,5.95025586]
[1747440538585,26.0,168.14,168.05,18.64964886]
[1747440538586,26.0,168.14,168.05,24.60025136]
[1747440539067,5.94673435,168.16,168.05,24.60025136]
[1747440539273,26.0,168.13,168.05,24.60025136]
[1747440539586,5.94673435,168.16,168.05,24.60025136]
[1747440539784,31.94673435,168.16,168.05,24.60025136]
[1747440539982,5.94673435,168.16,168.05,24.60025136]
[1747440540170,26.0,168.15,168.05,24.60025136]
[1747440540785,26.0,168.14,168.04,18.64964886]
[1747440541874,26.0,168.14,168.02,18.64964886]
[1747440542087,5.9477785,168.13,168.02,24.60115514]
[1747440542291,31.9477785,168.13,168.02,159.30115514]
[1747440543601,31.9477785,168.13,168.02,153.34964886]
[1747440543806,31.9477785,168.13,168.02,159.30130043]
[1747440544293,5.9477785,168.13,168.06,18.64964886]
[1747440544475,5.9477785,168.13,168.06,153.34964886]
[1747440546197,20.80979843,168.19,168.06,153.34964886]
[1747440546398,26.0,168.16,168.06,153.34964886]
[1747440547897,26.0,168.15,168.06,153.34964886]
[1747440548087,26.0,168.15,168.06,18.64964886]
[1747440548270,20.81598667,168.14,168.06,18.64964886]
[1747440548993,20.81598667,168.14,168.04,18.64964886]
[1747440551469,50.55311049,168.14,168.04,18.64964886]
[1747440551886,5.94671741,168.16,168.08,18.64964886]
[1747440552121,46.02384224,168.27,168.07,26.0]
[1747440552122,14.86112003,168.23,168.12,18.64964886]
[1747440552283,20.80536303,168.23,168.12,24.59773453]
[1747440552670,5.944243,168.23,168.12,24.59773453]
[1747440557495,35.7,168.29,168.15,26.0]
[1747440557804,50.0,168.43,168.2,18.64964886]
[1747440557805,5.94000594,168.35,168.2,18.64964886]
[1747440557978,26.0,168.32,168.2,18.64964886]
[1747440558686,26.0,168.32,168.19,26.0]
[1747440558687,5.94141762,168.31,168.22,18.64964886]
[1747440560601,20.79496167,168.31,168.22,18.64964886]
[1747440560906,20.79496167,168.31,168.21,18.64964886]
[1747440562889,20.79496167,168.31,168.22,5.94459636]
[1747440563281,20.79496167,168.31,168.21,5.94466936]
[1747440564016,5.94141762,168.31,168.21,5.94466936]
[1747440565805,5.94141762,168.31,168.21,12.54646936]
[1747440568720,20.79496167,168.31,168.21,6.6018]
[1747440569114,20.79496167,168.31,168.2,18.64964886]
[1747440570905,26.0,168.28,168.19,18.64964886]
[1747440571916,26.0,168.27,168.14,18.64964886]
[1747440572630,20.80114108,168.26,168.16,18.64964886]
[1747440574526,20.80114108,168.26,168.16,5.94642412]
[1747440575633,20.80114108,168.26,168.16,18.64964886]
[1747440577034,20.80114108,168.26,168.16,5.94662359]
[1747440578219,20.80114108,168.26,168.16,18.64964886]
[1747440579823,20.80114108,168.26,168.18,18.64964886]
[1747440580833,20.80114108,168.26,168.18,24.59565673]
[1747440581001,20.80114108,168.26,168.18,5.94600787]
[1747440582332,20.80114108,168.26,168.16,18.64964886]
[1747440582631,20.80114108,168.26,168.17,5.94636379]
[1747440583726,5.94318316,168.26,168.18,18.64964886]
[1747440585040,20.80114108,168.26,168.18,18.64964886]
[1747440585534,20.80114108,168.26,168.18,5.94591792]
[1747440585736,5.94318316,168.26,168.18,5.94591792]
[1747440586942,20.80114108,168.26,168.16,24.59624839]
[1747440587121,22.30754108,168.26,168.14,18.64964886]